bitfinex/quotes_SOLUSD_20241101
["timestamp","ask_amount","ask_price","bid_price","bid_amount"]
[1730498435931,6.0477,165.35,165.26,6.2874]
[1730498436136,76.0477,165.35,165.27,21.1774]
[1730498436351,0.12549,165.34,165.27,21.1774]
[1730498436938,6.0485,165.33,165.27,21.1774]
[1730498439550,15.0963,165.36,165.27,21.1774]
[1730498439766,21.1438,165.36,165.27,21.1774]
[1730498440672,70.12549,165.35,165.27,51.4309]
[1730498440959,0.12549,165.34,165.27,51.4309]
[1730498441535,6.17369,165.34,165.27,51.4309]
[1730498441959,6.0482,165.34,165.27,51.4309]
[1730498442162,6.29878,165.35,165.27,51.4309]
[1730498442348,6.0478,165.35,165.27,51.4309]
[1730498444279,6.0474,165.36,165.28,0.12549]
[1730498444447,30.2078,165.52,165.28,0.12549]
[1730498444448,6.0448,165.43,165.31,0.12549]
[1730498444652,6.0448,165.43,165.31,0.25098]
[1730498445070,6.0441,165.45,165.33,44.027864]
[1730498445366,6.0441,165.45,165.35,43.776884]
[1730498446153,6.0441,165.45,165.36,21.1659]
[1730498456571,6.0441,165.45,165.36,51.4029]
[1730498457277,0.12549,165.44,165.36,51.4029]
[1730498457473,6.0447,165.44,165.36,51.4029]
[1730498459356,6.0437,165.46,165.37,26.3598]
[1730498460454,6.0426,165.49,165.39,20.0]
[1730498461458,6.0426,165.49,165.41,20.0]
[1730498462364,6.0426,165.49,165.43,20.0]
[1730498463596,6.29248,165.52,165.44,21.1556]
[1730498465981,6.29248,165.52,165.44,15.1112]
[1730498468571,6.29248,165.52,165.42,6.499]
[1730498468572,0.25098,165.48,165.42,6.499]
[1730498468777,0.25098,165.48,165.42,12.5441]
[1730498470975,6.0433,165.47,165.42,12.5441]
[1730498471163,5.5433,165.47,165.42,12.5441]
[1730498471363,6.16859,165.48,165.42,27.6571]
[1730498471572,0.12549,165.48,165.42,27.6571]
[1730498471976,6.0419,165.51,165.42,27.6571]
[1730498472285,0.12549,165.5,165.42,27.6571]
[1730498473179,6.16789,165.5,165.42,27.6571]
[1730498483899,6.0412,165.53,165.43,20.0]
[1730498485270,0.12549,165.52,165.44,21.1556]
[1730498486287,6.16729,165.52,165.44,21.1556]
[1730498486973,6.16729,165.52,165.44,37.0709]
[1730498487603,6.16729,165.52,165.46,21.153]
[1730498488996,6.16729,165.52,165.46,15.1093]
[1730498489408,0.12549,165.52,165.46,15.1093]
[1730498489981,6.16719,165.52,165.46,15.1093]
[1730498497378,0.12549,165.52,165.46,15.1093]
[1730498498603,6.16709,165.52,165.46,15.1093]
[1730498498904,0.12549,165.52,165.46,15.1093]
[1730498499606,6.16699,165.52,165.46,15.1093]
[1730498501598,0.12549,165.52,165.46,15.1093]
[1730498503499,6.0386,165.6,165.5,20.0]
[1730498503803,6.0386,165.6,165.5,41.1479]
[1730498504604,0.12549,165.59,165.5,41.1479]
[1730498504811,6.16459,165.59,165.5,71.3593]
[1730498505311,0.12549,165.58,165.5,71.3593]
[1730498508500,6.0386,165.61,165.51,6.4474]
[1730498508701,6.0386,165.61,165.52,20.0]
[1730498509404,85.1194,165.63,165.54,20.0]
[1730498509405,6.0379,165.63,165.54,20.0]
[1730498509608,0.12549,165.62,165.54,20.0]
[1730498509801,6.0372,165.64,165.54,20.0]
[1730498510314,0.6047773,165.65,165.56,20.0]
[1730498510492,0.6047773,165.65,165.58,20.0]
[1730498512894,0.6047773,165.65,165.59,21.1365]
[1730498514311,6.6415773,165.65,165.59,21.1365]
[1730498515174,6.6415773,165.65,165.59,37.4244]
[1730498515327,0.6047773,165.65,165.6,6.4474]
[1730498517017,6.6416773,165.65,165.6,6.4474]
[1730498517216,0.6047773,165.65,165.61,21.1339]
[1730498522009,0.6047773,165.65,165.62,20.0]
[1730498523432,0.6047773,165.65,165.64,20.0]
[1730498526420,0.6047773,165.65,165.64,26.0371]
[1730498531232,0.6047773,165.65,165.64,48.1504]
[1730498532835,0.6047773,165.65,165.64,72.303754]
[1730498533127,6.15749,165.78,165.66,43.776884]
[1730498533435,6.032,165.78,165.66,43.776884]
[1730498534615,6.032,165.78,165.67,21.1262]
[1730498534818,0.12549,165.77,165.67,21.1262]
[1730498535027,94.027864,165.77,165.67,21.1262]
[1730498536433,6.0328,165.76,165.67,21.1262]
[1730498536611,0.12549,165.75,165.67,21.1262]
[1730498538134,6.0335,165.74,165.67,21.1262]
[1730498538428,0.12549,165.73,165.67,21.1262]
[1730498540034,0.12549,165.73,165.67,15.0902]
[1730498540331,0.12549,165.71,165.61,6.4604]
[1730498541436,0.12549,165.71,165.62,20.0]
[1730498541645,6.035,165.7,165.64,20.0]
[1730498542723,6.035,165.7,165.65,6.0368]
[1730498542949,6.035,165.7,165.64,26.0371]
[1730498543649,6.035,165.7,165.64,6.0371]
[1730498544325,6.035,165.7,165.64,21.13]
[1730498544553,6.035,165.7,165.64,15.0929]
[1730498545726,6.035,165.7,165.62,26.0378]
[1730498546747,15.087,165.71,165.62,26.0378]
[1730498546936,21.1216,165.71,165.62,41.1325]
[1730498547120,6.0346,165.71,165.63,20.0]
[1730498548036,6.0346,165.71,165.64,6.0371]
[1730498548241,6.0346,165.71,165.64,21.13]
[1730498549146,6.0346,165.71,165.64,15.0929]
[1730498552444,70.25098,165.7,165.62,6.0379]
[1730498553667,6.0353,165.69,165.62,6.0379]
[1730498554769,85.263,165.68,165.61,15.0953]
[1730498555949,6.036,165.67,165.57,21.139]
[1730498556442,0.12549,165.66,165.57,21.139]
[1730498557446,6.0368,165.65,165.58,20.0]
[1730498558160,0.12549,165.69,165.59,22.3898]
[1730498559537,6.16079,165.69,165.6,21.1352]
[1730498568061,6.0346,165.71,165.6,51.3284]
[1730498568246,6.0346,165.71,165.61,20.0]
[1730498569246,6.0346,165.71,165.62,21.1326]
[1730498569441,6.0331,165.75,165.63,20.0]
[1730498569668,6.0331,165.75,165.64,6.1298]
[1730498569953,6.0331,165.75,165.65,15.2329]
[1730498570337,6.0331,165.75,165.66,20.0]
[1730498570963,6.0331,165.75,165.67,21.1262]
[1730498584049,6.0317,165.79,165.68,20.0]
[1730498584364,6.0317,165.79,165.69,6.5796]
[1730498585350,76.0317,165.79,165.7,21.1225]
[1730498586064,6.0317,165.79,165.71,15.4796]
[1730498587374,16.1233,165.8,165.72,51.2911]
[1730498588371,22.1547,165.8,165.72,21.1198]
[1730498592471,92.1547,165.8,165.72,15.0856]
[1730498592850,92.1547,165.8,165.72,21.1198]
[1730498593047,0.25098,165.79,165.7,6.035]
[1730498593471,70.0,165.77,165.7,6.035]
[1730498593675,70.12549,165.79,165.7,6.035]
[1730498593867,0.12549,165.78,165.7,6.035]
[1730498594058,6.032,165.78,165.7,21.1225]
[1730498596957,70.0,165.76,165.68,21.125]
[1730498598607,6.0331,165.75,165.68,21.125]
[1730498601188,0.12549,165.77,165.68,21.125]
[1730498601360,6.0328,165.76,165.68,21.125]
[1730498602273,86.4108,165.74,165.66,6.0364]
[1730498603577,6.0339,165.73,165.66,21.1275]
[1730498605689,70.0,165.71,165.63,21.39868369]
[1730498605861,0.25098,165.7,165.63,15.0938]
[1730498606790,6.0353,165.69,165.63,15.0938]
[1730498610170,70.0,165.67,165.6,15.0966]
[1730498610570,70.0,165.67,165.59,6.0387]
[1730498610767,70.0,165.67,165.59,21.1362]
[1730498611657,6.0364,165.66,165.59,15.0975]
[1730498615386,70.12549,165.65,165.57,6.0397]
[1730498615771,70.0,165.62,165.55,6.0401]
[1730498615977,70.0,165.62,165.53,21.1442]
[1730498616169,85.681,165.62,165.53,21.1442]
[1730498617091,6.0382,165.61,165.53,21.1442]
[1730498617294,0.12549,165.6,165.53,21.1442]
[1730498618797,0.12549,165.6,165.51,22.16652825]
[1730498618798,0.12549,165.57,165.51,6.31102825]
[1730498619002,24.027864,165.57,165.49,21.1484]
[1730498619170,0.12549,165.55,165.49,15.1058]
[1730498619369,24.027864,165.55,165.46,37.5017]
[1730498619577,24.027864,165.55,165.46,43.5453]
[1730498620598,6.0408,165.54,165.46,43.5453]
[1730498621189,0.12549,165.53,165.46,43.5453]
[1730498621893,6.0415,165.52,165.46,43.5453]
[1730498622296,6.0415,165.52,165.46,27.6898]
[1730498622469,94.027864,165.51,165.44,6.31377689]
[1730498622675,94.027864,165.51,165.43,15.1119]
[1730498623596,94.027864,165.51,165.44,26.0443]
[1730498623903,6.012853,165.5,165.44,26.0443]
[1730498625084,29.943874,165.52,165.44,41.1555]
[1730498625281,0.12549,165.51,165.44,41.1555]
[1730498626197,6.16769,165.51,165.44,41.1555]
[1730498626603,0.12549,165.5,165.44,41.1555]
[1730498627301,6.16779,165.5,165.44,41.1555]
[1730498633686,6.16779,165.5,165.44,21.1555]
[1730498635108,6.16779,165.5,165.44,15.1112]
[1730498635612,0.12549,165.49,165.41,6.31505192]
[1730498635834,0.25098,165.46,165.37,15.1176]
[1730498635997,0.25098,165.46,165.38,6.31729136]
[1730498635998,24.027864,165.46,165.38,6.31729136]
[1730498636185,0.25098,165.44,165.38,6.31729136]
[1730498636500,0.25098,165.42,165.35,6.0477]
[1730498636716,0.12549,165.42,165.35,6.0477]
[1730498636897,22.2732,165.49,165.35,6.0477]
[1730498636898,70.0,165.47,165.35,21.1671]
[1730498637085,0.1,165.52,165.36,0.12549]
[1730498637293,70.0,165.51,165.36,0.12549]
[1730498637497,0.12549,165.48,165.37,15.5588]
[1730498638017,0.12549,165.48,165.35,51.4059]
[1730498638018,0.12549,165.44,165.35,21.1671]
[1730498638314,0.12549,165.42,165.35,21.1671]
[1730498638496,24.027864,165.42,165.35,21.1671]
[1730498639102,0.12549,165.4,165.35,21.1671]
[1730498639406,24.027864,165.4,165.3,20.0]
[1730498639600,24.027864,165.4,165.29,6.5039]
[1730498639908,0.12549,165.38,165.29,12.82348034]
[1730498640127,0.25098,165.36,165.29,6.5039]
[1730498641189,0.12549,165.34,165.29,6.5039]
[1730498642361,0.25098,165.34,165.28,15.1253]
[1730498642493,0.12549,165.32,165.24,22.3493773]
[1730498642828,0.25098,165.32,165.24,28.4007773]
[1730498643434,16.3227,165.38,165.24,28.4007773]
[1730498643435,6.0476,165.36,165.24,58.6597773]
[1730498643715,0.12549,165.35,165.25,6.3219037]
[1730498643927,6.0476,165.36,165.26,20.0]
[1730498644348,70.12549,165.35,165.25,6.3219037]
[1730498644501,6.0476,165.36,165.25,6.3219037]
[1730498644700,70.0,165.35,165.25,20.0]
[1730498645123,23.902374,165.34,165.25,20.0]
[1730498645514,0.12549,165.32,165.26,21.1786]
[1730498646616,6.17399,165.33,165.26,21.1786]
[1730498649308,6.0489,165.32,165.26,21.1786]
[1730498649904,6.17399,165.33,165.26,21.1786]
[1730498650098,0.12549,165.31,165.24,7.2204773]
[1730498650300,0.12549,165.31,165.25,21.1799]
[1730498650825,0.12549,165.32,165.25,21.1799]
[1730498650826,0.12549,165.32,165.25,15.1285]
[1730498651154,0.12549,165.32,165.25,21.1799]
[1730498651306,0.12549,165.3,165.25,15.1285]
[1730498651518,0.12549,165.3,165.24,13.2721773]
[1730498651821,16.3227,165.32,165.24,21.7859773]
[1730498652007,0.12549,165.33,165.24,21.7859773]
[1730498652217,6.17399,165.33,165.25,20.0]
[1730498653103,93.902374,165.32,165.24,21.7859773]
[1730498653314,6.17489,165.31,165.24,21.7859773]
[1730498655133,6.17489,165.31,165.24,15.7342773]
[1730498655420,0.12549,165.28,165.24,0.6047773]
[1730498655801,6.0494,165.31,165.24,0.6047773]
[1730498656166,6.0477,165.35,165.25,20.0]
[1730498657336,6.0463,165.39,165.27,71.4309]
[1730498657621,0.12549,165.38,165.29,20.0]
[1730498658215,0.12549,165.38,165.28,15.8708]
[1730498658216,70.12549,165.38,165.28,15.8708]
[1730498658520,0.12549,165.34,165.27,21.1774]
[1730498658829,24.027864,165.34,165.25,6.0514]
[1730498659166,24.027864,165.34,165.25,21.1799]
[1730498659321,76.0485,165.33,165.25,21.1799]
[1730498659519,0.12549,165.32,165.25,21.1799]
[1730498659730,24.027864,165.32,165.25,15.1285]
[1730498659916,0.12549,165.32,165.25,21.1799]
[1730498661307,6.0481,165.34,165.25,21.1799]
[1730498661508,0.12549,165.33,165.25,21.1799]
[1730498661714,0.12549,165.33,165.26,20.0]
[1730498661901,6.0481,165.34,165.26,20.0]
[1730498662508,6.0474,165.36,165.26,20.0]
[1730498662726,6.0474,165.36,165.28,20.0]
[1730498663226,15.1152,165.4,165.28,20.0]
[1730498663419,21.1611,165.4,165.29,21.1748]
[1730498663622,6.0459,165.4,165.3,20.0]
[1730498663825,6.0459,165.4,165.32,20.0]
[1730498664233,22.5215,165.41,165.32,20.0]
[1730498664733,6.0444,165.44,165.34,20.0]
[1730498664943,70.0,165.43,165.34,20.0]
[1730498665132,70.0,165.43,165.31,6.134]
[1730498665425,70.0,165.43,165.32,20.0]
[1730498665731,6.0452,165.42,165.33,21.1697]
[1730498666259,0.12549,165.41,165.33,21.1697]
[1730498666717,6.17069,165.42,165.33,21.1697]
[1730498668124,70.12549,165.41,165.33,21.1697]
[1730498668323,70.12549,165.41,165.31,6.134]
[1730498668324,23.902374,165.4,165.32,6.0485]
[1730498669016,23.902374,165.4,165.32,21.1706]
[1730498670229,0.12549,165.41,165.32,21.1706]
[1730498670433,6.17099,165.41,165.33,20.0]
[1730498671238,6.17099,165.41,165.34,21.1684]
[1730498674827,0.12549,165.39,165.32,6.0485]
[1730498675242,0.12549,165.39,165.32,21.1706]
[1730498676211,6.0466,165.38,165.32,15.1221]
[1730498676422,6.0466,165.38,165.32,21.1709]
[1730498677816,0.12549,165.37,165.29,15.1244]
[1730498679028,6.0474,165.36,165.29,15.1244]
[1730498681525,76.0474,165.36,165.28,6.0503]
[1730498681721,76.0474,165.36,165.27,6.0959]
[1730498681722,24.027864,165.35,165.27,6.0959]
[1730498681923,0.12549,165.33,165.27,6.0959]
[1730498682241,0.12549,165.33,165.26,21.1782]
[1730498683442,0.12549,165.34,165.26,15.1272]
[1730498683836,6.047,165.37,165.27,20.0]
[1730498684216,0.12549,165.36,165.27,20.0]
[1730498684824,6.0477,165.35,165.28,21.1761]
[1730498686530,0.12549,165.34,165.28,15.1258]
[1730498688133,93.902374,165.34,165.28,15.1258]
[1730498688633,93.902374,165.34,165.24,16.7046773]
[1730498688948,93.902374,165.34,165.25,41.1799]
[1730498688949,6.0485,165.33,165.25,41.1799]
[1730498692050,6.0474,165.36,165.25,71.437]
[1730498693333,0.12549,165.36,165.25,71.437]
[1730498693524,6.047,165.37,165.28,6.2504]
[1730498694738,6.047,165.37,165.29,21.1748]
[1730498697061,6.0477,165.35,165.29,21.1748]
[1730498701553,15.839,165.42,165.3,59.746674]
[1730498701860,21.8842,165.42,165.3,59.746674]
[1730498702036,6.0452,165.42,165.32,43.902374]
[1730498703068,0.12549,165.43,165.34,20.0]
[1730498704263,0.12549,165.44,165.32,6.0488]
[1730498704264,94.027864,165.41,165.32,6.0488]
[1730498705046,0.12549,165.39,165.32,6.0488]
[1730498706243,0.12549,165.37,165.3,21.1736]
[1730498707064,30.074464,165.38,165.3,15.124]
[1730498707753,6.0464,165.39,165.3,15.124]
[1730498708064,24.027864,165.38,165.3,15.124]
[1730498709251,0.12549,165.36,165.3,15.124]
[1730498710462,6.17249,165.37,165.3,15.124]
[1730498712096,0.12549,165.37,165.3,15.124]
[1730498712287,15.839,165.4,165.31,20.0]
[1730498713185,70.12549,165.39,165.31,20.0]
[1730498713396,70.12549,165.39,165.3,15.124]
[1730498713397,23.902374,165.38,165.3,15.124]
[1730498713979,0.12549,165.36,165.3,15.124]
[1730498714193,0.12549,165.33,165.26,30.9714]
[1730498714497,0.12549,165.31,165.26,15.1271]
[1730498714676,0.12549,165.31,165.26,21.1781]
[1730498714876,15.839,165.33,165.26,21.1781]
[1730498715174,6.0477,165.35,165.26,21.1781]
[1730498715375,0.12549,165.34,165.26,21.1781]
[1730498715595,70.0,165.32,165.26,21.1781]
[1730498715780,24.027864,165.31,165.24,6.6564773]
[1730498716299,0.12549,165.29,165.24,21.7859773]
[1730498717100,70.0,165.34,165.24,21.7859773]
[1730498717394,0.12549,165.32,165.24,21.7859773]
[1730498718479,24.027864,165.33,165.24,21.7859773]
[1730498718810,70.0,165.34,165.25,20.0]
[1730498718811,6.0482,165.34,165.25,20.0]
[1730498719907,6.0474,165.36,165.26,51.55939]
[1730498720091,6.0471,165.37,165.28,22.6499]
[1730498720289,6.0463,165.39,165.29,20.0]
[1730498721639,6.0463,165.39,165.3,21.1736]
[1730498722885,6.047,165.37,165.3,21.1736]
[1730498723199,70.0,165.43,165.31,20.0]
[1730498723698,0.12549,165.42,165.31,20.0]
[1730498723891,6.0448,165.43,165.34,16.5211]
[1730498724094,6.0448,165.43,165.35,20.0]
[1730498724505,76.0448,165.43,165.35,20.0]
[1730498724905,76.0448,165.43,165.36,6.0474]
[1730498725500,0.12549,165.42,165.36,6.0474]
[1730498725903,6.0455,165.41,165.36,6.0474]
[1730498727810,0.12549,165.4,165.34,15.1194]
[1730498728906,6.17169,165.4,165.34,15.1194]
[1730498734917,0.12549,165.38,165.31,21.1718]
[1730498735105,6.0455,165.41,165.32,20.0]
[1730498735289,0.12549,165.4,165.32,20.0]
[1730498736491,0.12549,165.4,165.33,21.1697]
[1730498737267,6.0455,165.41,165.33,21.1697]
[1730498750596,6.0455,165.41,165.33,21.1697]
[1730498753304,86.3757,165.45,165.35,20.0]
[1730498753478,6.16989,165.44,165.35,41.1671]
[1730498753679,70.0,165.49,165.37,20.0]
[1730498754410,70.0,165.45,165.37,20.0]
[1730498755398,0.12549,165.44,165.37,20.0]
[1730498755804,6.17019,165.44,165.38,21.1633]
[1730498756809,0.12549,165.45,165.38,21.1633]
[1730498757194,6.0437,165.46,165.38,21.1633]
[1730498757496,6.043,165.48,165.39,20.0]
[1730498757810,5.543,165.48,165.41,20.0]
[1730498758215,5.543,165.48,165.4,6.412]
[1730498758216,70.12549,165.47,165.4,6.412]
[1730498758420,70.12549,165.47,165.38,21.1633]
[1730498758788,0.12549,165.46,165.38,15.1167]
[1730498759115,6.0441,165.45,165.38,15.1167]
[1730498760503,6.0426,165.49,165.39,20.0]
[1730498761599,6.0426,165.49,165.38,15.1167]
[1730498761600,70.12549,165.48,165.4,15.1148]
[1730498761804,0.12549,165.47,165.4,15.1148]
[1730498762307,23.902374,165.47,165.4,15.1148]
[1730498762514,23.902374,165.47,165.38,20.0]
[1730498762515,70.0,165.45,165.38,20.0]
[1730498762718,24.027864,165.44,165.37,15.1174]
[1730498763593,24.027864,165.44,165.37,21.1644]
[1730498763894,6.0448,165.43,165.37,21.1644]
[1730498767010,0.12549,165.42,165.34,35.1198]
[1730498767897,6.0455,165.41,165.34,41.1679]
[1730498770592,0.12549,165.43,165.34,41.1679]
[1730498770903,6.0437,165.46,165.38,20.0]
[1730498771696,15.1068,165.49,165.38,20.0]
[1730498771891,21.1494,165.49,165.39,21.162]
[1730498772097,21.1494,165.49,165.4,20.0]
[1730498772098,6.0426,165.49,165.4,20.0]
[1730498772298,6.0415,165.52,165.4,20.0]
[1730498772592,0.12549,165.51,165.41,6.1835]
[1730498773097,0.12549,165.51,165.42,20.0]
[1730498773308,6.0408,165.54,165.45,16.6628]
[1730498773508,6.0408,165.54,165.46,20.0]
[1730498773895,6.0404,165.56,165.46,20.0]
[1730498774199,6.0393,165.58,165.48,20.0]
[1730498775203,0.12549,165.58,165.5,20.0]
[1730498775398,0.12549,165.55,165.49,21.1492]
[1730498775607,23.776884,165.58,165.49,21.1492]
[1730498775913,76.039,165.59,165.5,20.0]
[1730498775914,0.12549,165.57,165.5,20.0]
[1730498776122,6.039,165.59,165.5,20.0]
[1730498777308,6.0382,165.61,165.52,20.0]
[1730498778011,0.12549,165.6,165.52,20.0]
[1730498778204,0.12549,165.61,165.5,20.0]
[1730498778400,0.12549,165.6,165.5,41.1479]
[1730498778608,0.12549,165.59,165.5,41.1479]
[1730498779812,6.0393,165.58,165.5,41.1479]
[1730498780995,0.12549,165.57,165.5,41.1479]
[1730498782523,6.29088,165.57,165.5,21.1479]
[1730498782899,0.12549,165.57,165.5,21.1479]
[1730498783609,6.16529,165.57,165.5,21.1479]
[1730498784422,6.16529,165.57,165.5,15.1057]
[1730498786917,0.12549,165.55,165.5,15.1057]
[1730498788501,6.16589,165.55,165.5,15.1057]
[1730498788702,6.29098,165.57,165.5,15.1057]
[1730498789902,6.16549,165.57,165.5,15.1057]
[1730498791117,0.12549,165.57,165.5,15.1057]
[1730498791309,6.0382,165.61,165.51,20.0]
[1730498791513,0.12549,165.6,165.51,20.0]
[1730498791706,6.0382,165.61,165.51,20.0]
[1730498792417,6.0382,165.61,165.52,21.1454]
[1730498792722,0.12549,165.6,165.52,21.1454]
[1730498793421,26.16369,165.61,165.52,21.1454]
[1730498793725,0.12549,165.6,165.52,21.1454]
[1730498794024,0.12549,165.59,165.52,21.1454]
[1730498794224,0.12549,165.58,165.52,21.1454]
[1730498794612,6.16499,165.58,165.52,21.1454]
[1730498796326,6.16499,165.58,165.52,15.1039]
[1730498796525,0.12549,165.57,165.51,6.0418]
[1730498797213,0.25098,165.55,165.49,21.1484]
[1730498797615,0.25098,165.55,165.46,21.1524]
[1730498797616,0.25098,165.53,165.46,21.1524]
[1730498798520,6.0415,165.52,165.46,21.1524]
[1730498799215,26.16659,165.54,165.46,21.1524]
[1730498799728,0.12549,165.54,165.46,21.1524]
[1730498800024,0.25098,165.54,165.46,21.1524]
[1730498800427,6.29188,165.54,165.46,21.1524]
[1730498802013,6.16639,165.54,165.46,21.1524]
[1730498802209,85.0984,165.58,165.47,20.0]
[1730498802210,70.0,165.58,165.47,20.0]
[1730498802422,6.0398,165.57,165.47,20.0]
[1730498803424,6.0398,165.57,165.49,20.0]
[1730498804207,6.0398,165.57,165.5,6.6356]
[1730498804407,6.0391,165.59,165.51,20.0]
[1730498806010,6.0391,165.59,165.52,21.1454]
[1730498806524,24.027864,165.61,165.52,21.1454]
[1730498806829,6.28918,165.61,165.53,20.0]
[1730498807520,6.0382,165.61,165.53,20.0]
[1730498808242,6.16339,165.62,165.54,21.1428]
[1730498808602,0.12549,165.61,165.54,21.1428]
[1730498809513,6.16399,165.61,165.54,21.1428]
[1730498819826,6.16339,165.62,165.54,21.1428]
[1730498823644,0.12549,165.59,165.54,15.102]
[1730498824048,70.0,165.65,165.55,20.0]
[1730498824727,6.0371,165.64,165.56,21.1403]
[1730498825841,0.12549,165.63,165.56,21.1403]
[1730498827236,0.12549,165.63,165.57,6.3751]
[1730498827630,6.0366,165.66,165.58,20.0]
[1730498827829,6.16229,165.65,165.59,21.1365]
[1730498828252,6.16199,165.66,165.59,21.1365]
[1730498832139,76.16199,165.66,165.59,21.1365]
[1730498833352,114.027864,165.63,165.56,15.0996]
[1730498833656,0.12549,165.6,165.53,18.70539929]
[1730498834249,0.12549,165.62,165.53,33.80839929]
[1730498835059,0.12549,165.62,165.54,20.0]
[1730498835372,0.12549,165.62,165.53,33.80839929]
[1730498835373,0.12549,165.6,165.55,15.1011]
[1730498836258,92.5111,165.61,165.55,15.1011]
[1730498836259,92.13659,165.61,165.55,15.1011]
[1730498836558,70.0,165.59,165.51,21.1467]
[1730498836758,23.776884,165.58,165.51,21.1467]
[1730498837856,6.0397,165.57,165.51,15.1048]
[1730498838238,0.12549,165.56,165.51,15.1048]
[1730498838446,24.027864,165.56,165.49,6.0425]
[1730498838957,24.027864,165.56,165.49,21.1491]
[1730498839979,24.027864,165.56,165.49,15.1066]
[1730498839980,76.0404,165.55,165.49,15.1066]
[1730498840146,0.12549,165.52,165.46,21.40208966]
[1730498840465,0.12549,165.52,165.46,21.1526]
[1730498841544,6.16719,165.52,165.46,21.1526]
[1730498842868,20.0,165.53,165.46,21.1526]
[1730498843167,0.12549,165.53,165.46,21.1526]
[1730498844667,6.16669,165.53,165.46,21.1526]
[1730498848369,6.0404,165.55,165.46,21.1526]
[1730498848564,76.0399,165.57,165.47,20.0]
[1730498849370,76.0399,165.57,165.46,51.3713]
[1730498849681,76.0399,165.57,165.47,20.0]
[1730498849850,20.0,165.56,165.48,21.1505]
[1730498850050,70.25098,165.55,165.48,21.1505]
[1730498851472,6.0408,165.54,165.48,21.1505]
[1730498852047,6.0401,165.56,165.48,21.1505]
[1730498854074,6.16479,165.58,165.48,21.1505]
[1730498854373,20.12549,165.57,165.48,21.1505]
[1730498855164,0.12549,165.57,165.48,21.1505]
[1730498855379,6.16549,165.57,165.48,21.1505]
[1730498855969,70.0,165.59,165.49,20.0]
[1730498856189,6.0394,165.58,165.49,36.2313]
[1730498856357,0.12549,165.59,165.5,6.0428]
[1730498856559,0.12549,165.59,165.51,20.0]
[1730498858256,23.902374,165.6,165.51,20.0]
[1730498858461,6.039,165.59,165.52,21.1454]
[1730498859373,0.12549,165.58,165.52,21.1454]
[1730498860401,0.12549,165.58,165.52,15.1039]
[1730498862863,93.902374,165.6,165.52,15.1039]
[1730498863071,0.12549,165.59,165.52,15.1039]
[1730498864180,36.4503,165.66,165.52,15.1039]
[1730498864181,70.0,165.64,165.53,20.0]
[1730498864377,29.940274,165.62,165.53,20.0]
[1730498865168,99.940274,165.62,165.53,20.0]
[1730498866275,99.940274,165.62,165.54,15.102]
[1730498866475,6.16339,165.62,165.54,15.102]
[1730498866980,216.4376,165.63,165.54,15.102]
[1730498867183,6.0376,165.63,165.54,15.102]
[1730498867372,216.4372,165.64,165.55,20.0]
[1730498867783,210.4,165.63,165.55,20.0]
[1730498868462,210.4,165.63,165.53,71.47569]
[1730498869884,216.4376,165.63,165.53,71.47569]
[1730498871466,216.4376,165.63,165.53,71.3502]